Cogmind - Beta 14 @@@ ROGUE MODE // 2024.09.24 @ 23:30:01 // Winter2022/Polymind Player: AnotherZach Result: Destroyed by Y-45 Defender with Heavy Assault Rifle Performance ------------- Evolutions (2) 1000 Regions Visited (4) 800 Robots Destroyed (23) 115 Value Destroyed (644) 644 Prototype IDs (0) 0 Alien Tech Used (0) 0 Bonus (2102) 2102 TOTAL SCORE: 4231 Bonus ------- Polymind Skill 1837 Pacifist 200 High Alert Combat Kills 11 Follower Combat Kills 54 Cogmind --------- Core Integrity 0/550 Matter 0/0 Energy 215/215 System Corruption 0% Temperature Cool (27) Movement Walking (120) Location -8/Materials Parts ------- > --- POWER (1) -------- Improved Ion Engine > --- PROPULSION (2) --- Improved Aluminum Leg Improved Aluminum Leg > --- UTILITY (2) ------ Melee Analysis Suite Core Shielding > --- WEAPON (1) ------- Katana > --- INVENTORY (1) ---- Particle Gun Peak State ------------ > --- POWER ------------ Improved Ion Engine > --- PROPULSION ------- Improved Aluminum Leg Improved Aluminum Leg > --- UTILITY ---------- Melee Analysis Suite Core Shielding > --- WEAPON ----------- Katana > --- INVENTORY -------- (None) [Rating: 13] Favorites ----------- Power Improved Ion Engine Engine Improved Ion Engine Power Core Light Nuclear Core Propulsion Light Treads Treads Light Treads Leg Improved Aluminum Leg Wheel Compact Wheel Hover Unit Hover Unit Flight Unit Flight Unit Utility Heat Sink Device Heat Sink Storage Small Storage Unit Processor Melee Analysis Suite Hackware Hacking Suite Protection Light Armor Plating Weapon Beam Rifle Energy Gun Beam Rifle Ballistic Gun Heavy Assault Rifle Slashing Weapon Katana Special Melee Weapon Datajack Build | -11 -10 -9 -9 -8 ------- Run | Yrd Mat Mat Min Mat Slots Evolved . | . . . . . Power . | . . . . . Propulsion . | . . . . . Utility . | . . . . . Weapon . | . . . . . Parts Attached . | . . . . . Power . | . . . . . Engine . | . . . . . Core . | . . . . . Reactor . | . . . . . Propulsion . | . . . . . Treads . | . . . . . Leg . | . . . . . Wheel . | . . . . . Hover . | . . . . . Flight . | . . . . . Utility . | . . . . . Device . | . . . . . Storage . | . . . . . Processor . | . . . . . Hackware . | . . . . . Protection . | . . . . . Artifact . | . . . . . Weapon . | . . . . . Energy Gun . | . . . . . Energy Cannon . | . . . . . Ballistic Gun . | . . . . . Ballistic Cannon . | . . . . . Launcher . | . . . . . Special Weapon . | . . . . . Impact Weapon . | . . . . . Slashing Weapon . | . . . . . Piercing Weapon . | . . . . . Special Melee Weapon . | . . . . . Unidentified Prototypes . | . . . . . Parts Lost 6 | . . 3 . 3 Power . | . . . . . Propulsion 3 | . . 2 . 1 Utility 3 | . . 1 . 2 Weapon . | . . . . . Highest Loss Streak 2 | . . 2 . 2 To Critical Strikes . | . . . . . Average Slot Usage (%) 84 | . 100 80 57 91 Engine 11 | . 20 12 11 10 Core 1 | . . . . 4 Treads 10 | . . 13 . 8 Leg 7 | . . . . 20 Wheel 1 | . . . 22 1 Hover 2 | . 40 1 . . Device 11 | . . 13 11 10 Processor 2 | . . . . 5 Hackware 1 | . 20 . . . Protection 9 | . . 11 . 9 Energy Gun 9 | . . 11 . 8 Ballistic Gun 7 | . . 11 . 4 Slashing Weapon 2 | . . . . 5 Special Melee Weapon 1 | . 20 . . . Peak Build Rating 13 | . 7 11 5 13 Average Rating 9 | . 6 9 2 10 On Entrance 2 | . . 7 . 5 Naked Turns 89 | . 3 11 33 42 Heaviest Build 18 | . 4 18 9 17 Greatest Support 40 | 3 12 40 32 40 Greatest Overweight (x) . | . . . . . Average Overweight (x) . | . . . . . Largest Inventory Capacity 4 | . 1 1 4 4 Average Capacity 1 | . . . 1 1 Most Carried 4 | . 1 1 4 4 Average Carried . | . . . 1 . Final Capacity 4 | . 1 . 4 1 Final Carried 4 | . 1 . 4 1 Class Distribution -------------------- 62% | Sentry 13% | Duelist 8% | Grunt 6% | Operator 4% | Cogmind 3% | Recycler Dominant Class ---------------- Operator | -10/Materials Sentry | -9/Materials Cogmind | -9/Mines Duelist | -8/Materials Resources | -11 -10 -9 -9 -8 ----------- Run | Yrd Mat Mat Min Mat Matter Collected 69 | . . 47 . 22 Remotely . | . . . . . Salvage Created 744 | . . 98 . 646 Parts 36 | . . 13 . 23 Haulers Intercepted . | . . . . . Recyclers Shooed 1 | . . . . 1 Parts Field Recycled . | . . . . . Retrieved Matter . | . . . . . Parts Self-Destructed . | . . . . . Prevented . | . . . . . Kills | -11 -10 -9 -9 -8 ------- Run | Yrd Mat Mat Min Mat Combat Hostiles Destroyed 16 | . . 6 . 10 Melee 6 | . . . . 6 Guns 10 | . . 6 . 4 Classes Destroyed 8 | . . 5 . 3 Worker 2 | . . 1 . 1 Builder 1 | . . . . 1 Tunneler 2 | . . . . 2 Watcher 2 | . . 1 . 1 Swarmer 4 | . . 3 . 1 Grunt 7 | . . 2 . 5 Duelist 2 | . . 1 . 1 Sentry 3 | . . . . 3 Best Kill Streak 6 | . . 3 . 6 Combat Bots Only 4 | . . 3 . 4 Max Kills in Single Turn 1 | . . 1 . 1 Gunslinging . | . . . . . Exploded . | . . . . . Melee 1 | . . . . 1 Uniques/NPCs Destroyed . | . . . . . Combat | -11 -10 -9 -9 -8 -------- Run | Yrd Mat Mat Min Mat Hostile Shots Fired 166 | . . 63 . 103 Missed 34 | . . 15 . 19 Damage Taken 2003 | . . 709 . 1294 Core 761 | . . 201 . 560 Absorbed by Shields . | . . . . . Redirected to Shielding 20 | . . . . 20 Core Remaining (%) 83 | 100 100 . 49 . Volleys Fired 52 | . . 29 . 23 Largest 2 | . . 2 . 2 Hottest 79 | . . 79 . 79 Shots Fired 84 | . . 50 . 34 Gun 84 | . . 50 . 34 Cannon . | . . . . . Launcher . | . . . . . Special . | . . . . . Kinetic 40 | . . 29 . 11 Thermal 44 | . . 21 . 23 Explosive . | . . . . . Electromagnetic . | . . . . . Robot Hit Streak 14 | . . 14 . 10 Robot Miss Streak 3 | . . 3 . 1 Penetration Max . | . . . . . Secondary Targets 2 | . . 1 . 1 Max Gunslinging Chain 1 | . . 1 . 1 Shots Hit Robots 74 | . 1 31 . 42 Core Hits 28 | . . 10 . 18 Critical Kills . | . . . . . Critical Parts Destroyed 1 | . . 1 . . Critical Strikes 8 | . . 4 . 4 Burn 7 | . . 3 . 4 Destroy 1 | . . 1 . . Melee Attacks 17 | . 1 . . 16 Impact . | . . . . . Slashing 16 | . . . . 16 Piercing . | . . . . . Sneak Attacks 6 | . 1 . . 5 Combat Hostiles 1 | . . . . 1 Follow-up Attacks . | . . . . . Damage Inflicted 1515 | . . 409 . 1106 Guns 819 | . . 409 . 410 Cannons . | . . . . . Explosions . | . . . . . Melee 650 | . . . . 650 Ramming 46 | . . . . 46 Kinetic 366 | . . 231 . 135 Thermal 453 | . . 178 . 275 Explosive . | . . . . . Electromagnetic . | . . . . . Impact . | . . . . . Slashing 650 | . . . . 650 Piercing . | . . . . . Highest Corruption . | . . . . . Average Corruption . | . . . . . Corruption Purged . | . . . . . Corruption Blocked . | . . . . . Overload Shots . | . . . . . Overflow Damage 121 | . . . . 121 Projectiles . | . . . . . Explosions . | . . . . . Melee 121 | . . . . 121 Knockbacks 2 | . . . . 2 Impact 2 | . . . . 2 Kinetic . | . . . . . Secondary . | . . . . . Self-Inflicted Damage 14 | . . . . 14 Shots . | . . . . . Rammed 14 | . . . . 14 Targets Rammed 16 | . . . . 16 Kicked 1 | . . . . 1 Crushed 1 | . . . . 1 Highest Temperature 237 | . . 128 . 237 Average Temperature 59 | . . 38 . 77 Received Heat Transfer 741 | . . 147 . 594 Siege Activations . | . . . . . Robots Corrupted . | . . . . . Combat Hostiles . | . . . . . Parts Fried . | . . . . . Impact Corruptions . | . . . . . Robots Melted . | . . . . . Combat Hostiles . | . . . . . Parts Melted 4 | . . 1 . 3 Heat Transferred 1628 | . . 666 . 962 Parts Sabotaged . | . . . . . Parts Stolen . | . . . . . Parts Stripped . | . . . . . Power Chain Reactions . | . . . . . Alert | -11 -10 -9 -9 -8 ------- Run | Yrd Mat Mat Min Mat Peak Influence 510 | . 110 226 . 510 Initial 46 | . . 46 . . Average 139 | . 34 54 . 282 Maximum Alert Level 2 | . . 1 . 2 Low Security (%) 65 | 100 100 93 100 19 Level 1 26 | . . 6 . 59 Level 2 7 | . . . . 20 Level 3 . | . . . . . Level 4 . | . . . . . Level 5 . | . . . . . High Security . | . . . . . Max Security . | . . . . . Squads Dispatched 4 | . . 1 . 3 Investigation 2 | . . . . 2 Extermination . | . . . . . Reinforcement 2 | . . 1 . 1 Assault . | . . . . . Garrison . | . . . . . Intercept . | . . . . . Searches Triggered . | . . . . . Construction Impeded . | . . . . . Haulers Reinforced . | . . . . . Active Scanning Responses . | . . . . . Cargo Convoy Interrupts . | . . . . . Stealth | -11 -10 -9 -9 -8 --------- Run | Yrd Mat Mat Min Mat Distress Signals 2 | . . 1 . 1 Communications Jammed . | . . . . . Distress Signals . | . . . . . Times Spotted 61 | . 2 18 . 41 Peak Tracking Total 8 | . 1 5 . 8 Tactical Retreats 9 | . . . . 9 Traps | -11 -10 -9 -9 -8 ------- Run | Yrd Mat Mat Min Mat Traps Triggered 1 | . . . . 1 Indirectly . | . . . . . Trap Hack Attempts 18 | . 18 . . . Triggered . | . . . . . Disarmed . | . . . . . Reprogrammed 2 | . 2 . . . Reused 4 | . . . . 4 Traps Extracted . | . . . . . Installed 4 | . . . . 4 Triggered 4 | . . . . 4 Most Traps Carried 4 | . . . 4 4 Machines | -11 -10 -9 -9 -8 ---------- Run | Yrd Mat Mat Min Mat Machines Disabled 1 | . . . . 1 Max in Single Turn . | . . . . . Machines Repaired . | . . . . . Machines Dismantled . | . . . . . Machines Sabotaged . | . . . . . Overloaded Fab Kills . | . . . . . Hacking | -11 -10 -9 -9 -8 --------- Run | Yrd Mat Mat Min Mat Machines Accessed 3 | . 1 . . 2 Terminals 2 | . 1 . . 1 Fabricators . | . . . . . Repair Stations 1 | . . . . 1 Recycling Units . | . . . . . Scanalyzers . | . . . . . Garrison Access . | . . . . . Total Hacks 6 | . 3 . . 3 Successful 2 | . 1 . . 1 Failed 4 | . 2 . . 2 Catastrophic . | . . . . . Database Lockouts . | . . . . . Manual 6 | . 3 . . 3 Terminals 5 | . 3 . . 2 Fabricators . | . . . . . Repair Stations 1 | . . . . 1 Recycling Units . | . . . . . Scanalyzers . | . . . . . Garrison Access . | . . . . . Terminal Hacks 1 | . 1 . . . Branch Access Points 1 | . 1 . . . Fabricator Hacks . | . . . . . Repair Station Hacks . | . . . . . Recycling Unit Hacks . | . . . . . Scanalyzer . | . . . . . Garrison Access Hacks . | . . . . . Unauthorized Hacks 1 | . . . . 1 Terminals . | . . . . . Fabricators . | . . . . . Repair Stations 1 | . . . . 1 Patch 1 | . . . . 1 Recycling Units . | . . . . . Scanalyzers . | . . . . . Garrison Access . | . . . . . Data Cores Recovered . | . . . . . Used . | . . . . . Hacking Detections 1 | . . . . 1 Full Trace Events . | . . . . . Feedback Events . | . . . . . Feedback Blocked . | . . . . . Robot Schematics Acquired . | . . . . . Robots Built . | . . . . . Authchips . | . . . . . Time . | . . . . . Total Robot Build Rating . | . . . . . Part Schematics Acquired . | . . . . . Parts Built . | . . . . . Authchips . | . . . . . Time . | . . . . . Total Part Build Rating . | . . . . . Parts Repaired . | . . . . . Time . | . . . . . Parts Recycled . | . . . . . Recycled Matter . | . . . . . Retrieved Matter . | . . . . . Retrieved Components . | . . . . . Parts Scanalyzed . | . . . . . Part Schematics Acquired . | . . . . . Parts Damaged . | . . . . . Bothacking | -11 -10 -9 -9 -8 ------------ Run | Yrd Mat Mat Min Mat Used RIF Installer . | . . . . . Robots Hacked 7 | . 2 2 . 3 Non-combat 2 | . 2 . . . Combat 5 | . . 2 . 3 Robot Hacks Applied 7 | . 2 2 . 3 no_distress 1 | . 1 . . . find_terminals 1 | . 1 . . . find_shortcuts 5 | . . 2 . 3 Relay Couplers Released . | . . . . . Fabnet Peak Effective % . | . . . . . Robots Rewired . | . . . . . Allies Hacked . | . . . . . Hacks Repelled . | . . . . . Allies | -11 -10 -9 -9 -8 -------- Run | Yrd Mat Mat Min Mat Total Allies 3 | . . . 3 . Largest Group 3 | . . . 3 3 Highest-Rated Group 40 | . . . 40 40 Highest-Rated Ally 16 | . . . 16 16 Total Orders . | . . . . . Ally Attacks 20 | . . . . 20 Total Damage 161 | . . . . 161 Kills 4 | . . . . 4 Allies Corrupted . | . . . . . Allies Melted . | . . . . . Intel | -11 -10 -9 -9 -8 ------- Run | Yrd Mat Mat Min Mat Robot Analysis Total 7 | . 1 3 1 2 Derelict Logs Recovered . | . . . . . Drone Launches . | . . . . . Drone Recoveries . | . . . . . Exploration | -11 -10 -9 -9 -8 ------------- Run | Yrd Mat Mat Min Mat Turns Passed 2166 | 11 78 1175 65 837 Spaces Moved 835 | 21 103 154 92 465 Core 165 | 21 4 18 64 58 Treads 77 | . . 24 . 53 Legs 314 | . . . . 314 Wheels 76 | . . 8 28 40 Hover 173 | . 99 74 . . Flight 30 | . . 30 . . Fastest Speed 37 | 50 50 37 50 50 Average Speed 91 | 50 55 69 65 114 Slowest Speed 160 | 50 56 160 100 160 Overloaded Moves . | . . . . . Propulsion Burnouts . | . . . . . Robots Hopped . | . . . . . Cave-ins Triggered . | . . . . . Exploration Rate (%) 21 | 4 21 16 24 43 Regions Visited 4 Branch Regions 1 Pre-discovered Areas . | . . . . . Known Exits Taken . | . . . . . Unknown Exits Taken 4 | 1 1 1 1 . Scrap Searched 1 | . . . 1 . Spaces Dug . | . . . . . Terrain Destroyed . | . . . . . Melee . | . . . . . Projectile . | . . . . . AOE . | . . . . . Terrain Rammed . | . . . . . Walls Destroyed . | . . . . . Machines Disabled . | . . . . . Actions | -11 -10 -9 -9 -8 --------- Run | Yrd Mat Mat Min Mat Total 2125 | 20 122 1173 96 714 Wait 1175 | . . 991 1 183 Move 831 | 20 102 153 91 465 Hop . | . . . . . Pick Up 7 | . 1 . 4 2 Fast Attach . | . . . . . Attach . | . . . . . Detach . | . . . . . Swap . | . . . . . Drop 5 | . . . . 5 Fire 52 | . . 29 . 23 Melee 17 | . 1 . . 16 Ram 10 | . . . . 10 Kick 1 | . . . . 1 Crush 5 | . . . . 5 Escape Stasis . | . . . . . Rewire . | . . . . . Trap 22 | . 18 . . 4 Miscellaneous . | . . . . . Route ------- -11/Scrapyard -10/Materials (discovered 3 exits: [*Mat] / Min x2) -9/Materials -9/Mines -8/Materials History --------- Turn | Location | Event 3 | -11/Scrapyard | Discovered new exit (range 15) 12 | -11/Scrapyard | Entered Materials 20 | -10/Materials | Identified exit to Mines 83 | -10/Materials | Discovered new exit (range 8) 90 | -10/Materials | Entered another Materials area 175 | -9/Materials | Discovered new exit (range 16) 1264 | -9/Materials | Core integrity fell below 50% 1265 | -9/Materials | Entered Mines 1273 | -9/Mines | Assisted by bots powering up and referring to "LRC-V3" 1282 | -9/Mines | Found DCF Scrap (13 items) 1292 | -9/Mines | Discovered new exit (range 11) 1295 | -9/Mines | Found a hidden stash of uninstalled traps 1330 | -9/Mines | Entered Materials 1330 | -8/Materials | Accompanied by 3 allies 1426 | -8/Materials | Lost 3 allies 1872 | -8/Materials | Core integrity fell below 50% 1881 | -8/Materials | Core integrity fell below 20% 2167 | -8/Materials | Destroyed by Y-45 Defender with Heavy Assault Rifle Last Messages --------------- 01958_ Sneak attack on T-07 Excavator. 01958_ Destroyed Mining Laser. 01958_ T-07 Excavator destroyed. 01959_ C-30 ARC bursts open, deploying its payload. 01959_ G-50 Soldier unfolds itself. 01959_ G-47 Trooper unfolds itself. 01960_ K-01 Serf collects debris. 01992_ Connecting with Repair Station... >>Force(Patch) NO_PATCHABLE 01992_ ALERT: Suspicious activity at Repair Station M001. Dispatching Investigation squad. 02081_ Y-45 Defender destroyed. 02084_ Acquired 22 Protomatter. 02119_ Sneak attack on T-07 Excavator. 02119_ Destroyed Wheel. 02119_ T-07 Excavator destroyed. 02122_ K-01 Serf collects debris. 02167_ Critical hit (Burn: +37). Map ----- +----------------------------------------------------+ | ########???????????????????######??# #???????? | | ???????????????????????????? ?## ##??????? | | ????????????????????????????? """ # #??????? | | ?????????????????????????????""""" # #??????? | | ?????????????????????????????""""" + #??????? | | ?????????????????????????????""""" # #??????? | | ????????????????????????????? """ # #??????? | | ????????????????????????????? ?## ##??????? | | ???????????????????????????? ??# #???????? | | ???????????????????????????####+##???# #???????? | | ??????????????????????????????# ###### #???????? | | ????????????????????????? # #???????? | | ??????????????????????????""" + #???????? | | ??????????????????????????????# #???????? | | ??????????????????????????????# #####???????? | | ??????????????????????????????# #?????##????? | | ??????????????????????????????# %! #???? #????? | | ?????????????????#?#########??# #???? "#????? | | ?????????????????# """ """ #??# #??? "#????? | | ?????????????????# """ """ #??# #??? "#????? | | ?????????????????# """ """ #??# #?? T#????? | | ?????????????????# #??# #??! "#????? | | ?????????????????# ! #### ## "#????? | | ?????????????????# ! [ + # "#????? | | ?????????????????# #### + #????? | | ?????????????????#! ! l #??# ###### !#????? | | ?????????????????#######Y###??# #????? ! #????? | | ?????????????????????? #???# #??????#####????? | | ?????????????????????# ??????????????? | | ?????????????????????# ????????????? | | ?????????????????????# ############???????????? | | ?????????????????????######??????????????????????? | | ?????????????????????????????????????????????????? | | ?????????????????????????????????????????????????? | | ?????????????????????????????????????????????????? | | ?????????????????????????????????????????????????? | | ?????????????????????????????????????????????????? | | ?????????????????????????????????????????????????? | | ?????????????????????????????????????????????????? | | | | | | | | | | | | | | | | | | | | | | | +----------------------------------------------------+ Best States ------------- Heat Dissipation 40 Energy Generation 19 Energy Capacity 215 Matter Stores 100 Matter Capacity 100 Sight Range 16 Terrain Scan Density 10 Armor Coverage 150 Resistance: EX 50 Resistance: I 25 Resistance: S 25 Resistance: P 25 Core Shielding 20 Evasion (%) 62 Melee Accuracy 5 Recoil Reduction 2 Offensive Hacking 10 Item Schematics ----------------- None Robot Schematics ------------------ None Fabricated ------------ Nothing Alien Tech Used ----------------- None Achievements -------------- None Challenges ------------ None Polymind | -11 -10 -9 -9 -8 ---------- Run | Yrd Mat Mat Min Mat Hosts 8 | . 1 3 1 3 Combat Hostiles 5 | . . 2 . 3 Allies . | . . . . . Unique Host Classes 7 | . 1 3 1 2 Average Host Suspicion 75 | . 45 67 4 94 Unsuspicious Activity 1151 | . 7 981 2 161 Returns to Shadow 1 | . . 1 . . Fuzzy Dispatches . | . . . . . Protomatter Created 79 | . . 46 . 33 Used 126 | . 5 34 5 82 Decayed 4 | . . . . 4 Highest Spend 30 | . 5 23 5 30 Top 5 Hosts by Kills: L-31 Rogue (-8/Materials: 5) Y-45 Defender (-9/Materials: 4) Y-45 Defender (-8/Materials: 3) S-10 Pest (-9/Materials: 2) G-47 Trooper (-8/Materials: 2) Game ------ Seed ShadingAuthchipReplica Manual? 0 Play Time 00:18:10 Cumulative 744.4 hours Start 2024.09.24 @ 23:17:57 End 2024.09.24 @ 23:30:01 Sessions 1 Manual Loads 0 Difficulty Rogue Special Mode Winter2022/Polymind Game No. 166 Rogue 28 Adventurer 138 Explorer 0 Win Type - Total 13 Types 8/0/1/2/1/0/0/0/1 Lore% 79 Gallery% 84 Achievement% 75 Wizard Run 0 Options --------- Layout 2 ASCII 0 Keyboard 0 Movement Mouse Keybinds 0 Fullscreen 1 Font 24/Smallcaps Map View 50x49 Zoom Use 0% Tactical HUD 1 Map Filters NONE Filters NONE Steam 1 RUN: c428f73e-0751-4c8a-b156-23c1e7891e30